Cogmind - Beta 16 @@@ ROGUE MODE // 2026.01.23 @ 13:24:37 Player: delto Result: Destroyed by as-63864 with Assembled Heavy Rifle Performance ------------- Evolutions (0) 0 Regions Visited (2) 400 Robots Destroyed (4) 20 Value Destroyed (37) 37 Prototype IDs (0) 0 Alien Tech Used (0) 0 Bonus (0) 0 TOTAL SCORE: 457 Bonus ------- None Cogmind --------- Core Integrity 0/250 Matter 300/300 Energy 90/100 System Corruption 0% Temperature Cool (0) Movement Core (50) Location -10/Mines Parts ------- > --- POWER (1) -------- (None) > --- PROPULSION (2) --- Compact Wheel > --- UTILITY (2) ------ (None) > --- WEAPON (2) ------- (None) > --- INVENTORY (5) ---- Wheel Small Storage Unit Launcher Guidance Computer Peak State ------------ > --- POWER ------------ Ion Engine > --- PROPULSION ------- Light Treads Compact Wheel > --- UTILITY ---------- Small Storage Unit Improved Terrain Scanner > --- WEAPON ----------- Small Laser Assault Rifle > --- INVENTORY -------- Light Ion Engine Light Treads Wheel EM Pulse Gun [Rating: 9] Favorites ----------- Power Ion Engine Engine Ion Engine Propulsion Compact Wheel Treads Light Treads Wheel Compact Wheel Utility Small Storage Unit Device Improved Terrain Scanner Storage Small Storage Unit Weapon Assault Rifle Energy Gun Small Laser Ballistic Gun Assault Rifle Special Weapon Mining Laser Build | -11 -10 -10 ------- Run | Yrd Mat Min Slots Evolved . | . . . Power . | . . . Propulsion . | . . . Utility . | . . . Weapon . | . . . Parts Attached 12 | 7 1 4 Power 2 | 1 . 1 Engine 2 | 1 . 1 Core . | . . . Reactor . | . . . Propulsion 3 | 2 . 1 Treads 2 | 1 . 1 Leg . | . . . Wheel 1 | 1 . . Hover . | . . . Flight . | . . . Utility 2 | 2 . . Device 1 | 1 . . Storage 1 | 1 . . Processor . | . . . Hackware . | . . . Protection . | . . . Artifact . | . . . Weapon 5 | 2 1 2 Energy Gun 2 | 1 . 1 Energy Cannon . | . . . Ballistic Gun 2 | 1 . 1 Ballistic Cannon . | . . . Launcher . | . . . Special Weapon 1 | . 1 . Impact Weapon . | . . . Slashing Weapon . | . . . Piercing Weapon . | . . . Special Melee Weapon . | . . . Unidentified Prototypes . | . . . Parts Lost 10 | . . 10 Power 2 | . . 2 Propulsion 2 | . . 2 Utility 1 | . . 1 Weapon 5 | . . 5 Highest Loss Streak 10 | . . 10 To Critical Strikes . | . . . Average Backups 3 | 1 5 4 Power . | . 1 . Propulsion 1 | . 2 1 Utility . | . . . Weapon 1 | . 2 1 Tool/Special . | . . . Unused Backups 1 | . . 1 Power . | . . . Propulsion 1 | . . 1 Utility . | . . . Weapon . | . . . Tool/Special . | . . . Average Slot Usage (%) 91 | . 100 86 Engine 14 | . 14 14 Treads 12 | . 14 11 Wheel 14 | . 14 14 Device 10 | . 14 8 Storage 14 | . 14 14 Energy Gun 6 | . 8 5 Ballistic Gun 15 | . 14 16 Special Weapon 2 | . 5 1 Peak Build Rating 9 | 9 9 9 Average Rating 6 | 5 9 6 On Entrance 6 | . 9 9 Avg Prop Armor Cover (%) 12 | 13 12 10 Naked Turns . | . . . Heaviest Build 14 | 14 14 14 Greatest Support 20 | 20 16 16 Greatest Overweight (x) 2 | 1 . 2 Average Overweight (x) . | . . . Largest Inventory Capacity 8 | 8 8 8 Average Capacity 7 | 7 8 8 Most Carried 6 | 5 5 6 Average Carried 3 | 2 5 4 Final Capacity 8 | 8 8 5 Final Carried 5 | 5 5 3 Class Distribution -------------------- 100% | Mutant Dominant Class ---------------- Mutant | -10/Materials Mutant | -10/Mines Resources | -11 -10 -10 ----------- Run | Yrd Mat Min Matter Collected 349 | 279 . 70 Remotely . | . . . Salvage Created 58 | 17 . 41 Parts 7 | 4 . 3 Haulers Intercepted . | . . . Recyclers Shooed . | . . . Parts Field Recycled . | . . . Retrieved Matter . | . . . Parts Self-Destructed . | . . . Prevented . | . . . Parts Restored . | . . . Kills | -11 -10 -10 ------- Run | Yrd Mat Min Combat Hostiles Destroyed 3 | . . 3 Guns 3 | . . 3 Classes Destroyed 2 | 1 . 1 Tunneler 1 | 1 . . Swarmer 3 | . . 3 Best Kill Streak 3 | 1 . 3 Combat Bots Only 3 | . . 3 Max Kills in Single Turn 1 | 1 . 1 Gunslinging . | . . . Exploded . | . . . Melee . | . . . Uniques/NPCs Destroyed . | . . . Combat | -11 -10 -10 -------- Run | Yrd Mat Min Hostile Shots Fired 54 | . . 54 Missed 13 | . . 13 Hits 41 | . . 41 Projectile 41 | . . 41 AOE 20 | . . 20 Critical Strikes 1 | . . 1 Damage Taken 1051 | . . 1051 Core 251 | . . 251 Absorbed by Shields . | . . . Core Remaining (%) 100 | 100 . . Volleys Fired 19 | 3 2 14 Largest 2 | 2 1 2 Hottest 100 | 60 100 60 Shots Fired 33 | 6 2 25 Gun 32 | 6 1 25 Cannon . | . . . Launcher . | . . . Special 1 | . 1 . Kinetic 20 | 3 1 16 Thermal 12 | 3 1 8 Explosive . | . . . Electromagnetic 1 | . . 1 Robot Hit Streak 6 | 3 4 6 Robot Miss Streak 2 | 1 . 2 Penetration Max . | . . . Secondary Targets . | . . . Shots Hit Robots 21 | 4 1 16 Core Hits 7 | 1 . 6 Critical Kills . | . . . Critical Parts Destroyed . | . . . Critical Strikes . | . . . Melee Attacks . | . . . Impact . | . . . Slashing . | . . . Piercing . | . . . Sneak Attacks . | . . . Combat Hostiles . | . . . Follow-up Attacks . | . . . Damage Inflicted 266 | 49 12 205 Guns 266 | 49 12 205 Cannons . | . . . Explosions . | . . . Melee . | . . . Ramming . | . . . Kinetic 189 | 39 12 138 Thermal 65 | 10 . 55 Explosive . | . . . Electromagnetic 12 | . . 12 Impact . | . . . Slashing . | . . . Piercing . | . . . Highest Corruption . | . . . Average Corruption . | . . . Corruption Purged . | . . . Corruption Blocked . | . . . Overload Shots . | . . . Overflow Damage . | . . . Projectiles . | . . . Explosions . | . . . Melee . | . . . Knockbacks . | . . . Impact . | . . . Kinetic . | . . . Secondary . | . . . Self-Inflicted Damage . | . . . Shots . | . . . Rammed . | . . . Targets Rammed . | . . . Kicked . | . . . Crushed . | . . . Highest Temperature 20 | . 20 20 Average Temperature 14 | . 12 15 Received Heat Transfer . | . . . Siege Activations . | . . . Martial Activations . | . . . Shielding Activations . | . . . Robots Disrupted . | . . . Combat Hostiles . | . . . Robots Corrupted . | . . . Combat Hostiles . | . . . Parts Fried . | . . . Impact Corruptions . | . . . Robots Melted . | . . . Combat Hostiles . | . . . Parts Melted . | . . . Heat Transferred 150 | 25 . 125 Parts Sabotaged . | . . . Parts Stolen . | . . . Parts Stripped . | . . . Power Chain Reactions . | . . . Alert | -11 -10 -10 ------- Run | Yrd Mat Min Maximum Alert Level . | . . . Low Security (%) 100 | 100 100 100 Level 1 . | . . . Level 2 . | . . . Level 3 . | . . . Level 4 . | . . . Level 5 . | . . . High Security . | . . . Max Security . | . . . Peak Influence 70 | 5 5 70 Initial . | . . . Average 12 | . 1 28 Influence Increases 81 | 5 6 70 Destroy 0b10 Robot/C 60 | . . 60 Destroy 0b10 Robot/NC 5 | 5 . . Destroy Leader 10 | . . 10 Successful Hack 5 | . 5 . Destroy Structure 1 | . 1 . Influence Decreases 81 | 5 6 70 Time Decay 41 | 5 6 30 Lost Part 40 | . . 40 Squads Dispatched 1 | . 1 . Investigation . | . . . Extermination . | . . . Reinforcement 1 | . 1 . Assault . | . . . Garrison . | . . . Intercept . | . . . Searches Triggered . | . . . Construction Impeded . | . . . Haulers Reinforced . | . . . Active Scanning Responses . | . . . Cargo Convoy Interrupts . | . . . Stealth | -11 -10 -10 --------- Run | Yrd Mat Min Distress Signals . | . . . Communications Jammed . | . . . Distress Signals . | . . . Times Spotted 15 | . 1 14 Peak Tracking Total 8 | . 1 8 Tactical Retreats . | . . . Traps | -11 -10 -10 ------- Run | Yrd Mat Min Traps Triggered . | . . . Indirectly . | . . . Trap Hack Attempts . | . . . Triggered . | . . . Disarmed . | . . . Reprogrammed . | . . . Reused . | . . . Traps Extracted . | . . . Installed . | . . . Triggered . | . . . Machines | -11 -10 -10 ---------- Run | Yrd Mat Min Machines Disabled . | . . . Max in Single Turn . | . . . Machines Repaired . | . . . Machines Dismantled . | . . . Machines Sabotaged . | . . . Overloaded Fab Kills . | . . . Hacking | -11 -10 -10 --------- Run | Yrd Mat Min Machines Accessed 1 | . 1 . Terminals 1 | . 1 . Fabricators . | . . . Repair Stations . | . . . Recycling Units . | . . . Scanalyzers . | . . . Garrison Access . | . . . Total Hacks 2 | . 2 . Successful 1 | . 1 . Failed 1 | . 1 . Catastrophic . | . . . Database Lockouts . | . . . Manual 2 | . 2 . Terminals 2 | . 2 . Fabricators . | . . . Repair Stations . | . . . Recycling Units . | . . . Scanalyzers . | . . . Garrison Access . | . . . Terminal Hacks . | . . . Fabricator Hacks . | . . . Repair Station Hacks . | . . . Recycling Unit Hacks . | . . . Scanalyzer . | . . . Garrison Access Hacks . | . . . Unauthorized Hacks 1 | . 1 . Terminals 1 | . 1 . Botnet 1 | . 1 . Fabricators . | . . . Repair Stations . | . . . Recycling Units . | . . . Scanalyzers . | . . . Garrison Access . | . . . Data Cores Recovered . | . . . Used . | . . . Hacking Detections 1 | . 1 . Full Trace Events . | . . . Feedback Events . | . . . Feedback Blocked . | . . . Robot Schematics Acquired . | . . . Robots Built . | . . . Authchips . | . . . Time . | . . . Total Robot Build Rating . | . . . Part Schematics Acquired . | . . . Parts Built . | . . . Authchips . | . . . Time . | . . . Total Part Build Rating . | . . . Part Studies Acquired . | . . . Parts Repaired . | . . . Time . | . . . Parts Recycled . | . . . Recycled Matter . | . . . Retrieved Matter . | . . . Retrieved Components . | . . . Parts Scanalyzed . | . . . Part Schematics Acquired . | . . . Parts Damaged . | . . . Bothacking | -11 -10 -10 ------------ Run | Yrd Mat Min Used RIF Installer . | . . . Robots Hacked . | . . . Non-combat . | . . . Combat . | . . . Robot Hacks Applied . | . . . Relay Couplers Released . | . . . Fabnet Peak Effective % . | . . . Robots Rewired . | . . . Allies Hacked . | . . . Hacks Repelled . | . . . Allies | -11 -10 -10 -------- Run | Yrd Mat Min Total Allies . | . . . Largest Group . | . . . Highest-Rated Group . | . . . Highest-Rated Ally . | . . . Total Orders . | . . . Ally Attacks . | . . . Total Damage . | . . . Kills . | . . . Allies Corrupted . | . . . Allies Melted . | . . . Intel | -11 -10 -10 ------- Run | Yrd Mat Min Active Infowar (turns) 104 | 10 42 52 Terrain 104 | 10 42 52 Robot Analysis Total . | . . . Derelict Logs Recovered . | . . . Drone Launches . | . . . Drone Recoveries . | . . . Exploration | -11 -10 -10 ------------- Run | Yrd Mat Min Turns Passed 223 | 86 42 95 Spaces Moved 138 | 62 35 41 Core 17 | 5 . 12 Treads 3 | 3 . . Legs . | . . . Wheels 118 | 54 35 29 Hover . | . . . Flight . | . . . Fastest Speed 50 | 50 100 100 Average Speed 104 | 99 100 114 Slowest Speed 160 | 160 100 150 Overloaded Moves . | . . . Propulsion Burnouts . | . . . Robots Hopped . | . . . Potential Cave-ins . | . . . Cave-ins Triggered . | . . . Exploration Rate (%) 11 | 4 13 16 Regions Visited 2 Branch Regions 1 Pre-discovered Areas . | . . . Known Exits Taken . | . . . Unknown Exits Taken 2 | 1 1 . Scrap Searched . | . . . Spaces Dug 1 | . 1 . Terrain Destroyed 1 | . 1 . Melee . | . . . Projectile 1 | . 1 . AOE . | . . . Terrain Rammed . | . . . Walls Destroyed . | . . . Machines Disabled . | . . . Actions | -11 -10 -10 --------- Run | Yrd Mat Min Total 178 | 76 37 65 Wait . | . . . Move 136 | 61 34 41 Hop . | . . . Pick Up 7 | 5 . 2 Fast Attach 7 | 7 . . Attach 5 | . . 5 Detach 1 | . . 1 Swap 3 | . 1 2 Drop . | . . . Fire 19 | 3 2 14 Melee . | . . . Ram . | . . . Kick . | . . . Crush . | . . . Escape Stasis . | . . . Rewire . | . . . Trap . | . . . Miscellaneous . | . . . Route ------- -11/Scrapyard -10/Materials -10/Mines History --------- Turn | Location | Event 32 | -11/Scrapyard | Discovered new exit (range 15) 87 | -11/Scrapyard | Entered Materials 115 | -10/Materials | Discovered new exit (range 13) 129 | -10/Materials | Entered Mines 166 | -10/Mines | Assembled infested the area 194 | -10/Mines | Core integrity fell below 50% 201 | -10/Mines | Core integrity fell below 20% 224 | -10/Mines | Destroyed by as-63864 with Assembled Heavy Rifle Last Messages --------------- 00200_ The unstable cave ceiling collapses. 00202_ Mining Laser destroyed. 00202_ Lgt. Treads destroyed. 00202_ K-01 Serf collects debris. 00203_ The unstable cave ceiling collapses. 00204_ D-53 Grenadier destroyed. 00207_ U-05 Engineer system corrupted by crushing effect. 00207_ U-05 Engineer destroyed. 00207_ K-01 Serf collects debris. 00208_ The unstable cave ceiling collapses. 00211_ K-01 Serf collects debris. 00211_ Acquired Launcher Guidance Computer. 00212_ Acquired 17 matter. 00214_ K-01 Serf collects debris. 00215_ Lgt. Assault Rifle destroyed. 00215_ Acquired 12 matter. 00217_ The unstable cave ceiling collapses. 00222_ U-05 Engineer destroyed. 00223_ as-57732 sneak attacks. 00223_ Lgt. Ion Engine destroyed. Map ----- +----------------------------------------------------+ | ?????????????????????????????#??????????????????? | | ????????????????????????????? ??????????????????? | | ????????????????????????????? ??????????????????? | | ????????????????????????????? ??????????????????? | | ????????????????????????????? ??????????????????? | | ?????????????????????????###? #?????????????????? | | ?????????????????????????# # ?????????????????? | | ????????????????#??????### #####?????????????? | | ???????????????????????? #?????????????? | | ????????????????????????? % #?????????????? | | ????????????????????#?#?## #?????????????? | | ??????????????????????#### # # #?????????????? | | ????????????????????#?# # #?????????????? | | ??????????????????????# # # aa #?????????????? | | ??????????????????????# * #?????????????? | | ?????????????????????## =%! #?????????????? | | ????????????????????## #?????????????? | | ????????????????????# ##????#????????? | | ????????????????????## ## ##??????????????? | | ?????????????????????######a #???????????????? | | ?????????????????????????##% #???????#???????? | | ?????????????????????????# ##???????????????? | | ????????????????????????##a ##########?#??????? | | ?????????????????????#?## # #????????? | | ????????????????????#?##| # """ ########## | | ????????????????????###s@a """ | | ??????????????????# s !u """* * | | ??????????????????# s k ######## | | ??????????????????# ##### # """ #???#????? | | ??????????????????#?????# ## """ #????????? | | ?????????????????????#??# ## """ #??#?????? | | ????????????????????????## ### #????????? | | ?????????????????????????####?# #????????? | | ??????????????????????????????##########????????? | | ???????????????????????#????????????????????????? | | ????????????????????????????????????????????????? | | ???????????????????????????????#????????????????? | | ????????????????????????????????????????????????? | | ??????????????????????????#????????????#????????? | | ?????????????????????????????????????#???#??????? | | ????????????????????????????????????????????????? | | ????????????????????????????????????????????????? | | | | | | | | | | | | | | | | | +----------------------------------------------------+ Best States ------------- Heat Dissipation 25 Energy Generation 10 Energy Capacity 250 Matter Stores 300 Matter Capacity 300 Sight Range 16 Terrain Scan Range 16 Terrain Scan Density 10 Evasion (%) 40 Recoil Reduction 1 Item Schematics ----------------- None Robot Schematics ------------------ None Fabricated ------------ Nothing Repaired ---------- Nothing Studied --------- None Alien Tech Used ----------------- None Achievements -------------- None Challenges ------------ None Game ------ Seed MetafiberLayeredSlayer Manual? 0 Play Time 00:05:08 Cumulative 97.7 hours Start 2026.01.23 @ 13:21:22 End 2026.01.23 @ 13:24:37 Sessions 1 Manual Loads 0 Difficulty Rogue Special Mode None Game No. 124 Rogue 124 Adventurer 0 Explorer 0 Win Type - Total 1 Types 1/0/0/0/0/0/0/0/0/0 Lore% 24 Gallery% 43 Achievement% 29 Wizard Run 0 Options --------- Layout 0 ASCII 0 Keyboard 0 Movement Mouse Keybinds 0 Fullscreen 1 Font 24/Smallcaps Map View 76x50 Zoom Use 0% Tactical HUD 1 Map Filters NONE Filters NONE Steam 1 RUN: 0bed0d39-11c9-43a7-83e3-032dfd821643